bitfinex-derivatives/quotes_SOLF0:USTF0_20250509
["timestamp","ask_amount","ask_price","bid_price","bid_amount"]
[1746793186184,11.02718895,171.43,171.39,2.36404518]
[1746793186383,11.02718895,171.43,171.33,5.8374]
[1746793186582,11.02718895,171.43,171.34,8.76333883]
[1746793186783,11.02718895,171.43,171.35,2.36350266]
[1746793186983,11.02718895,171.43,171.36,2.36350266]
[1746793187184,11.02718895,171.43,171.37,2.36350266]
[1746793187483,11.02718895,171.43,171.24,485.02778895]
[1746793187484,11.02718895,171.43,171.27,33.1]
[1746793187685,11.02718895,171.43,171.29,2.35720471]
[1746793187877,11.02718895,171.43,171.3,2.35721908]
[1746793188083,33.12,171.44,171.31,2.35721908]
[1746793188283,11.02718895,171.43,171.32,2.35721908]
[1746793188486,11.02718895,171.43,171.26,33.1]
[1746793188487,11.02718895,171.43,171.33,2.35721908]
[1746793188681,11.02718895,171.43,171.34,8.19431908]
[1746793188885,12.09995786,171.43,171.35,2.35694754]
[1746793189085,11.02718895,171.43,171.36,2.35694754]
[1746793189282,11.02718895,171.43,171.26,33.1]
[1746793189488,11.02718895,171.43,171.29,2.35654145]
[1746793189788,33.08,171.42,171.36,5.8362]
[1746793189984,33.08,171.42,171.37,2.35654145]
[1746793190187,5.8352,171.4,171.38,2.35654145]
[1746793190390,5.8352,171.4,171.39,2.35654145]
[1746793190586,5.8352,171.4,171.39,2.35533274]
[1746793190888,11.02718895,171.47,171.39,2.35533274]
[1746793190889,33.08,171.44,171.39,2.35533274]
[1746793191084,33.08,171.44,171.4,2.35533274]
[1746793191284,33.08,171.44,171.41,2.35533274]
[1746793191485,33.08,171.44,171.31,33.08]
[1746793191681,33.08,171.44,171.32,2.35417435]
[1746793191987,11.02718895,171.47,171.33,3.52151223]
[1746793192293,33.08,171.47,171.34,3.5214441]
[1746793192591,33.08,171.47,171.35,4.30352196]
[1746793192793,5.8333,171.46,171.36,39.23042196]
[1746793192991,485.12748895,171.55,171.37,4.71384699]
[1746793193188,33.06,171.54,171.38,2.35672503]
[1746793193387,11.02718895,171.56,171.4,11.02718895]
[1746793193588,33.06,171.55,171.41,35.41672503]
[1746793193888,5.8316,171.51,171.46,5.8331]
[1746793194088,33.06,171.55,171.47,3.52072619]
[1746793194290,33.06,171.55,171.48,3.5184065]
[1746793194585,33.06,171.55,171.49,3.51833849]
[1746793194790,33.06,171.55,171.49,1.16624876]
[1746793194992,5.8317,171.5,171.49,1.16624876]
[1746793195291,38.8917,171.5,171.49,1.16624876]
[1746793195888,33.06,171.5,171.44,2.34578567]
[1746793196087,33.06,171.5,171.37,4.18262196]
[1746793196393,33.06,171.5,171.38,3.51324038]
[1746793196596,33.06,171.5,171.39,2.34624307]
[1746793196785,33.06,171.5,171.4,2.34624307]
[1746793197092,33.06,171.5,171.41,2.34624307]
[1746793197093,5.8341,171.44,171.41,2.34624307]
[1746793197287,33.06,171.5,171.42,2.34624307]
[1746793197485,33.06,171.5,171.43,3.51290001]
[1746793197790,33.06,171.5,171.44,1.16658889]
[1746793197991,33.04,171.49,171.45,2.34562402]
[1746793198187,5.8331,171.47,171.46,1.16645281]
[1746793200892,33.04,171.49,171.39,5.8354]
[1746793201197,11.02718895,171.48,171.4,2.34950914]
[1746793201394,11.02718895,171.48,171.41,2.34950914]
[1746793201588,11.02718895,171.48,171.39,1.16692922]
[1746793201788,11.02718895,171.44,171.39,1.16692922]
[1746793201995,33.0,171.43,171.39,1.16692922]
[1746793202194,5.8351,171.4,171.39,1.16692922]
[1746793202394,33.0,171.43,171.37,2.35712196]
[1746793202591,5.8358,171.38,171.37,2.35712196]
[1746793202791,33.0,171.43,171.37,4.70096358]
[1746793202992,33.0,171.43,171.38,2.34378774]
[1746793203295,33.0,171.43,171.37,2.35712196]
[1746793203502,33.0,171.43,171.38,2.34460776]
[1746793203796,33.0,171.43,171.39,2.34460776]
[1746793203997,33.0,171.43,171.4,2.34460776]
[1746793204189,33.0,171.43,171.37,2.35712196]
[1746793204492,5.8355,171.39,171.38,2.34456295]
[1746793205298,5.8352,171.4,171.38,2.34456295]
[1746793205496,5.8352,171.4,171.39,2.34689368]
[1746793205996,33.0,171.43,171.39,2.34689368]
[1746793206290,33.0,171.43,171.4,2.34689368]
[1746793206495,5.8346,171.42,171.41,2.34689368]
[1746793207697,5.8358,171.38,171.37,2.35712196]
[1746793208100,32.98,171.38,171.37,2.35712196]
[1746793209099,32.98,171.42,171.37,2.35712196]
[1746793209800,5.835,171.41,171.37,2.35712196]
[1746793210099,11.02718895,171.5,171.37,2.35712196]
[1746793210300,32.96,171.49,171.38,1.16699731]
[1746793210495,1.07239246,171.48,171.38,1.16699731]
[1746793210794,32.96,171.49,171.38,1.16699731]
[1746793210999,1.07240052,171.48,171.38,1.16699731]
[1746793211396,11.02718895,171.46,171.38,1.16699731]
[1746793211592,1.07240052,171.45,171.38,1.16699731]
[1746793211794,32.96,171.44,171.38,1.16699731]
[1746793212598,5.8341,171.43,171.4,5.8349]
[1746793213101,32.96,171.48,171.38,1.16699731]
[1746793213405,11.02718895,171.56,171.39,3.9602]
[1746793213595,34.01202072,171.55,171.4,1.16686114]
[1746793213800,5.8313,171.52,171.41,32.94]
[1746793213995,5.8313,171.52,171.42,1.166725]
[1746793214199,32.94,171.55,171.42,1.166725]
[1746793214400,5.8308,171.53,171.5,5.8315]
[1746793214703,32.94,171.54,171.42,1.166725]
[1746793214904,5.8313,171.52,171.48,5.8322]
[1746793215198,32.94,171.53,171.42,1.166725]
[1746793215904,38.7709,171.53,171.49,5.8318]
[1746793216204,32.94,171.55,171.42,1.166725]
[1746793216407,32.94,171.55,171.43,6.32825819]
[1746793216705,462.18,171.62,171.44,6.32825819]
[1746793216898,5.8311,171.52,171.48,5.8323]
[1746793217106,32.94,171.55,171.49,6.32825819]
[1746793217606,5.8312,171.52,171.5,6.32825819]
[1746793217905,32.94,171.55,171.45,1.8788]
[1746793218108,5.832,171.5,171.46,5.8328]
[1746793218304,32.92,171.62,171.47,3.7704]
[1746793218498,11.02718895,171.59,171.48,6.32468053]
[1746793218810,11.02718895,171.55,171.48,6.32468053]
[1746793219012,5.8308,171.53,171.49,5.832]
[1746793219307,43.94718895,171.54,171.5,6.32468053]
[1746793219707,5.8314,171.51,171.5,6.32468053]
[1746793220607,43.94718895,171.54,171.41,1.941]
[1746793220808,1.07207287,171.53,171.45,5.8333]
[1746793221004,5.8323,171.49,171.46,2.30932354]
[1746793221203,32.9,171.49,171.47,2.30932354]
[1746793221409,32.9,171.49,171.41,1.941]
[1746793221605,5.8329,171.47,171.41,1.941]
[1746793221812,32.9,171.49,171.41,7.7756]
[1746793222007,32.9,171.49,171.41,1.941]
[1746793222204,32.9,171.49,171.39,1.81]
[1746793222406,32.9,171.49,171.37,2.35712196]
[1746793222407,11.02718895,171.46,171.37,2.35712196]
[1746793222810,5.8353,171.4,171.37,2.35712196]
[1746793223614,32.88,171.41,171.37,2.35712196]
[1746793224106,5.8357,171.39,171.37,2.35712196]
[1746793224815,5.8357,171.39,171.37,3.35712196]
[1746793226115,5.8358,171.38,171.37,3.35712196]
[1746793226318,462.1,171.58,171.37,3.35712196]
[1746793226610,11.02718895,171.54,171.38,3.83]
[1746793226808,1.07230561,171.53,171.39,1.8494]
[1746793227006,32.86,171.52,171.4,32.86]
[1746793227514,32.86,171.52,171.39,1.8494]
[1746793228309,5.8323,171.49,171.4,6.93025253]
[1746793228504,5.8323,171.49,171.41,6.93025253]
[1746793228706,32.86,171.52,171.42,6.93025253]
[1746793228915,32.86,171.52,171.43,6.93025253]
[1746793229113,32.86,171.52,171.44,6.93025253]
[1746793229312,38.6916,171.51,171.47,5.8327]
[1746793229516,32.86,171.51,171.48,6.93025253]
[1746793229718,32.86,171.51,171.39,1.8494]
[1746793229917,5.8326,171.48,171.4,6.89844112]
[1746793230118,5.8326,171.48,171.41,6.89844112]
[1746793230418,32.86,171.51,171.46,5.8331]
[1746793230618,32.86,171.51,171.47,6.89844112]
[1746793230809,32.86,171.51,171.48,6.89844112]
[1746793231119,5.8321,171.49,171.39,1.8494]
[1746793231417,32.84,171.5,171.4,6.32765941]
[1746793231614,32.84,171.5,171.41,6.32765941]
[1746793231916,32.84,171.5,171.39,1.8494]
[1746793231917,38.672,171.5,171.46,5.8329]
[1746793232116,38.672,171.5,171.39,1.8494]
[1746793232317,32.84,171.5,171.39,1.8494]
[1746793232515,32.84,171.53,171.39,1.8494]
[1746793232717,38.6708,171.53,171.49,5.832]
[1746793233122,38.6708,171.53,171.5,6.26215241]
[1746793233318,38.6708,171.53,171.51,2.24673168]
[1746793233517,38.6708,171.53,171.52,2.24673168]
[1746793233720,5.8308,171.53,171.52,2.24673168]
[1746793234018,32.82,171.54,171.52,2.24673168]
[1746793234222,473.12718895,171.58,171.53,2.24673168]
[1746793234421,32.82,171.57,171.54,2.24831939]
[1746793234719,5.8297,171.56,171.55,2.24831939]
[1746793235315,5.8297,171.56,171.51,5.8311]
[1746793235316,5.8305,171.54,171.51,5.8311]
[1746793235518,5.8305,171.54,171.52,2.24791401]
[1746793235813,32.82,171.57,171.53,2.24791401]
[1746793236020,32.82,171.57,171.54,2.24777389]
[1746793236226,32.82,171.57,171.55,2.24777389]
[1746793236523,5.8304,171.54,171.42,32.84]
[1746793236719,5.8304,171.54,171.43,8.50690912]
[1746793236916,32.8,171.56,171.44,2.24723717]
[1746793237223,32.8,171.56,171.45,2.24723717]
[1746793237420,32.8,171.56,171.46,10.35470912]
[1746793237620,5.831,171.53,171.47,2.24723717]
[1746793237828,32.8,171.56,171.48,2.24723717]
[1746793238019,32.8,171.56,171.49,2.24723717]
[1746793238217,32.8,171.56,171.5,2.24722074]
[1746793238417,32.8,171.56,171.51,8.50689269]
[1746793238725,5.8309,171.53,171.52,2.24722074]
[1746793239925,5.8315,171.51,171.47,5.8326]
[1746793240126,462.1,171.58,171.48,2.24709591]
[1746793240326,11.02718895,171.63,171.49,8.50769257]
[1746793240626,5.8296,171.57,171.5,2.24203593]
[1746793240824,5.8296,171.57,171.54,5.8303]
[1746793241029,5.8297,171.56,171.55,2.24203435]
[1746793241527,32.78,171.6,171.55,2.24203435]
[1746793241827,32.78,171.6,171.56,2.24203435]
[1746793242027,32.78,171.6,171.51,5.8313]
[1746793242215,5.8306,171.54,171.52,2.2404598]
[1746793242421,5.8306,171.54,171.53,2.2404598]
[1746793243527,5.8318,171.5,171.47,3.7788]
[1746793243723,11.02718895,171.55,171.48,2.24443947]
[1746793243928,32.76,171.54,171.49,2.24443947]
[1746793244222,32.76,171.54,171.41,1.8771]
[1746793244432,32.76,171.54,171.42,8.49823158]
[1746793244626,5.833,171.47,171.43,8.49823158]
[1746793244825,5.833,171.47,171.44,2.24499547]
[1746793245125,5.8331,171.46,171.45,8.49823158]
[1746793245316,32.76,171.49,171.45,8.49823158]
[1746793245521,32.76,171.49,171.46,2.24499547]
[1746793245718,32.76,171.49,171.47,2.24499547]
[1746793245919,32.76,171.49,171.41,1.8771]
[1746793246119,5.8337,171.45,171.42,14.33285174]
[1746793246320,32.76,171.49,171.43,8.49845174]
[1746793246522,5.8326,171.48,171.44,8.07892778]
[1746793246723,32.76,171.49,171.45,2.24542778]
[1746793246926,32.76,171.49,171.46,2.24542778]
[1746793247126,32.76,171.49,171.47,4.49117918]
[1746793247331,32.76,171.49,171.47,2.24542778]
[1746793247526,5.8324,171.48,171.47,2.24542778]
[1746793247727,5.8324,171.48,171.47,4.49143027]
[1746793248624,5.8324,171.48,171.47,4.49506823]
[1746793249029,5.8324,171.48,171.47,4.49503281]
[1746793249832,38.5922,171.49,171.47,4.49503281]
[1746793250030,38.5922,171.49,171.48,2.24960503]
[1746793250723,38.5922,171.49,171.48,2.24728691]
[1746793251433,5.8322,171.49,171.48,2.24728691]
[1746793251632,38.5522,171.49,171.48,2.24728691]
[1746793253738,5.8322,171.49,171.48,2.24728691]
[1746793254036,5.8324,171.48,171.47,2.24542778]
[1746793254233,11.02718895,171.55,171.47,10.33573603]
[1746793254438,5.8316,171.51,171.48,2.25780825]
[1746793254735,5.8316,171.51,171.47,2.24542778]
[1746793254736,5.8316,171.51,171.49,2.25780825]
[1746793254930,5.8316,171.51,171.5,2.25780825]
[1746793255126,11.02718895,171.59,171.5,2.25780825]
[1746793255330,32.7,171.57,171.51,2.25780825]
[1746793255536,33.77182402,171.57,171.52,2.25780825]
[1746793255737,5.8315,171.51,171.47,2.24542778]
[1746793255939,5.8315,171.51,171.48,2.25606943]
[1746793256235,32.7,171.52,171.47,2.24542778]
[1746793256236,32.7,171.52,171.49,2.25637555]
[1746793256431,38.5313,171.52,171.5,2.25637555]
[1746793256636,32.7,171.52,171.5,2.25637555]
[1746793256939,32.7,171.52,171.51,2.25642944]
[1746793258340,5.8305,171.54,171.51,8.53504918]
[1746793258534,5.8305,171.54,171.52,2.25642944]
[1746793258735,5.8305,171.54,171.53,2.25755891]
[1746793259034,5.8305,171.54,171.53,8.53617865]
[1746793259835,5.8305,171.54,171.53,2.25755891]
[1746793260440,32.66,171.58,171.53,2.25755891]
[1746793260635,32.66,171.58,171.54,2.2572372]
[1746793260946,5.8297,171.56,171.55,8.529934]
[1746793261531,32.66,171.59,171.55,8.529934]
[1746793261736,11.02718895,171.64,171.56,2.2572372]
[1746793261937,5.8289,171.59,171.57,8.529934]
[1746793262137,5.8289,171.59,171.58,2.2572372]
[1746793262341,32.66,171.61,171.58,2.2572372]
[1746793262542,32.66,171.62,171.59,8.529934]
[1746793262743,32.66,171.62,171.6,2.2572372]
[1746793262944,5.8296,171.57,171.53,5.8306]
[1746793263143,5.8296,171.57,171.54,2.26710217]
[1746793263341,5.8296,171.57,171.55,2.26710217]
[1746793263642,5.8296,171.57,171.56,2.26710217]
[1746793264447,5.8291,171.58,171.56,2.26287602]
[1746793264633,5.8291,171.58,171.57,2.26287602]
[1746793266043,5.8294,171.57,171.54,5.8303]
[1746793266242,5.8294,171.57,171.55,2.26231326]
[1746793266445,5.8294,171.57,171.56,2.26231326]
[1746793266847,32.62,171.57,171.48,5.7396]
[1746793267343,5.8294,171.57,171.54,5.8303]
[1746793267542,32.62,171.58,171.48,5.7396]
[1746793267949,5.8301,171.55,171.48,5.7396]
[1746793268245,32.62,171.58,171.48,5.7396]
[1746793268842,32.62,171.58,171.49,5.832]
[1746793269148,32.62,171.58,171.48,5.7396]
[1746793270339,5.8309,171.53,171.5,5.8316]
[1746793271247,5.8311,171.52,171.49,5.832]
[1746793271950,5.8308,171.53,171.5,5.8317]
[1746793272449,5.8311,171.52,171.49,5.832]
[1746793272949,5.8308,171.53,171.5,5.8317]
[1746793273249,32.6,171.55,171.48,5.7396]
[1746793273549,5.8307,171.53,171.49,5.8321]
[1746793273751,5.8307,171.53,171.48,5.7396]
[1746793274048,32.6,171.55,171.49,5.832]
[1746793274544,32.6,171.55,171.5,1.16618075]
[1746793274950,32.6,171.55,171.4,3.8473]
[1746793275247,5.8321,171.49,171.48,1.16631677]
[1746793275945,32.58,171.5,171.4,3.8473]
[1746793276448,32.58,171.5,171.48,1.16631677]
[1746793276746,32.58,171.5,171.4,3.8473]
[1746793277250,32.58,171.5,171.41,1.16679306]
[1746793277453,5.833,171.47,171.44,5.8335]
[1746793277650,32.58,171.5,171.41,1.16679306]
[1746793277846,38.412,171.5,171.41,1.16679306]
[1746793278245,32.58,171.5,171.41,1.16679306]
[1746793278551,5.8323,171.49,171.45,5.8331]
[1746793278851,5.8323,171.49,171.46,5.8331]
[1746793279042,38.4118,171.5,171.41,1.16679306]
[1746793279247,32.58,171.5,171.41,1.16679306]
[1746793279448,32.58,171.5,171.45,5.8332]
[1746793279649,32.58,171.5,171.41,1.16679306]
[1746793280449,32.58,171.5,171.42,5.8343]
[1746793280947,32.58,171.5,171.41,7.00149306]
[1746793281546,5.8336,171.45,171.41,7.00149306]
[1746793281749,32.54,171.45,171.41,1.16679306]
[1746793282251,32.54,171.45,171.37,3.35712196]
[1746793282252,11.02718895,171.44,171.37,3.35712196]
[1746793282451,11.02718895,171.38,171.27,5.784]
[1746793282647,32.54,171.37,171.27,5.784]
[1746793282847,32.54,171.37,171.33,5.8374]
[1746793283052,32.54,171.42,171.28,1.16767865]
[1746793283256,11.02718895,171.39,171.29,5.8388]
[1746793283651,5.8373,171.34,171.29,5.8388]
[1746793283846,32.54,171.36,171.3,5.8383]
[1746793284047,32.54,171.36,171.31,1.16747416]
[1746793284256,5.8369,171.35,171.31,1.16747416]
[1746793284453,32.54,171.36,171.31,1.16747416]
[1746793284655,5.8354,171.4,171.31,1.16747416]
[1746793284856,32.52,171.39,171.31,1.16747416]
[1746793285054,32.52,171.41,171.38,5.8356]
[1746793285250,32.52,171.41,171.31,1.16747416]
[1746793285454,32.52,171.41,171.39,1.16692922]
[1746793285655,32.52,171.41,171.27,38.304]
[1746793285857,5.8362,171.37,171.27,38.304]
[1746793286059,32.52,171.41,171.27,38.304]
[1746793286355,32.52,171.41,171.28,1.16767865]
[1746793286752,5.8376,171.33,171.29,5.8386]
[1746793287458,32.52,171.36,171.28,1.16767865]
[1746793287862,5.8382,171.31,171.28,1.16767865]
[1746793288055,32.52,171.36,171.28,1.16767865]
[1746793288761,5.8387,171.3,171.28,1.16767865]
[1746793290161,32.52,171.36,171.28,1.16767865]
[1746793290659,32.52,171.36,171.28,3.15547865]
[1746793291262,5.8381,171.32,171.28,8.99457865]
[1746793291953,5.8376,171.33,171.28,3.15547865]
[1746793292358,32.5,171.35,171.28,3.15547865]
[1746793292562,5.8373,171.34,171.31,5.8382]
[1746793293060,5.8373,171.34,171.28,3.15547865]
[1746793293263,32.5,171.35,171.28,3.15547865]
[1746793293565,32.5,171.35,171.29,1.16761048]
[1746793293960,11.02718895,171.42,171.29,1.16761048]
[1746793294166,5.8358,171.38,171.29,1.16761048]
[1746793294467,32.5,171.41,171.29,1.16761048]
[1746793294963,11.02718895,171.38,171.29,1.16761048]
[1746793296166,5.8364,171.37,171.33,5.8373]
[1746793296366,32.5,171.38,171.29,1.16761048]
[1746793296666,32.5,171.38,171.35,5.8368]
[1746793296865,472.98718895,171.44,171.29,33.64761048]
[1746793297067,32.48,171.43,171.29,33.64761048]
[1746793297267,5.835,171.41,171.37,5.836]
[1746793297864,5.8352,171.4,171.37,5.836]
[1746793298169,32.48,171.43,171.37,5.836]
[1746793298469,32.48,171.43,171.38,5.8358]
[1746793298968,32.48,171.43,171.29,33.64761048]
[1746793299270,462.28,171.54,171.3,11.6768]
[1746793299469,5.834,171.44,171.41,5.8346]
[1746793299866,32.48,171.47,171.41,5.8346]
[1746793300367,5.8336,171.45,171.41,5.8346]
[1746793300565,32.48,171.47,171.36,5.6972]
[1746793300762,11.02718895,171.46,171.36,3.7838]
[1746793300963,5.835,171.41,171.36,3.7838]
[1746793301465,5.835,171.41,171.38,5.8358]
[1746793301668,32.46,171.42,171.36,3.7838]
[1746793301875,32.46,171.42,171.37,5.8359]
[1746793302074,32.46,171.42,171.36,3.7838]
[1746793302771,32.46,171.46,171.36,3.7838]
[1746793302971,32.46,171.45,171.36,3.7838]
[1746793303661,5.8343,171.43,171.4,5.835]
[1746793304072,32.46,171.45,171.4,5.835]
[1746793304269,5.8339,171.44,171.4,5.835]
[1746793304470,32.46,171.45,171.4,5.835]
[1746793304771,5.8344,171.43,171.36,3.7838]
[1746793304967,32.46,171.45,171.36,3.7838]
[1746793305181,32.44,171.48,171.44,5.8335]
[1746793305465,32.44,171.49,171.36,36.2238]
[1746793306472,32.44,171.5,171.36,36.2238]
[1746793306664,32.44,171.5,171.45,5.8332]
[1746793306863,32.44,171.5,171.36,36.2238]
[1746793307068,5.8323,171.49,171.36,36.2238]
[1746793307371,5.8323,171.49,171.45,5.8332]
[1746793308171,5.8325,171.48,171.44,5.8337]
[1746793308373,32.44,171.5,171.44,5.8337]
[1746793308567,32.44,171.49,171.36,36.2238]
[1746793308869,5.8326,171.48,171.36,36.2238]
[1746793309372,5.8326,171.48,171.44,5.8335]
[1746793309872,11.02465356,171.48,171.36,3.7838]
[1746793310174,11.02465356,171.48,171.4,5.8349]
[1746793310374,11.02465356,171.48,171.36,3.7838]
[1746793310874,1.0723902,171.47,171.36,3.7838]
[1746793311268,11.02465356,171.48,171.36,3.7838]
[1746793311464,5.8342,171.43,171.36,3.7838]
[1746793311771,32.42,171.44,171.36,3.7838]
[1746793313376,32.42,171.44,171.42,5.8342]
[1746793313769,32.42,171.44,171.36,3.7838]
[1746793314672,32.42,171.44,171.41,5.8345]
[1746793314974,32.42,171.44,171.36,3.7838]
[1746793315273,32.42,171.44,171.41,5.8346]
[1746793315677,5.8336,171.45,171.36,3.7838]
[1746793315867,38.2336,171.45,171.41,5.8346]
[1746793316371,5.8338,171.44,171.41,5.8346]
[1746793316576,32.4,171.45,171.42,5.8344]
[1746793317068,32.4,171.45,171.36,3.7838]
[1746793317270,357.0,171.53,171.37,32.4]
[1746793317475,33.47214816,171.52,171.37,32.4]
[1746793317676,5.8322,171.49,171.45,5.8332]
[1746793318079,5.8322,171.49,171.37,32.4]
[1746793319078,5.8322,171.49,171.46,5.833]
[1746793319376,5.8325,171.48,171.37,32.4]
[1746793319672,5.8325,171.48,171.44,5.8334]
[1746793319872,5.8323,171.49,171.37,32.4]
[1746793320370,5.8311,171.52,171.37,32.4]
[1746793320576,32.38,171.52,171.37,32.4]
[1746793320781,32.38,171.52,171.47,5.8325]
[1746793320971,5.8316,171.51,171.47,5.8325]
[1746793321777,5.8316,171.51,171.46,5.833]
[1746793322080,462.28,171.54,171.46,5.833]
[1746793322375,32.36,171.52,171.39,1.845]
[1746793322577,5.8318,171.5,171.39,1.845]
[1746793322776,5.8318,171.5,171.46,5.8329]
[1746793323083,5.8321,171.49,171.46,5.8329]
[1746793323281,32.36,171.52,171.46,5.8329]
[1746793323682,5.8319,171.5,171.46,5.8329]
[1746793323871,5.8319,171.5,171.47,5.8327]
[1746793324375,462.28,171.54,171.42,32.36]
[1746793324577,11.02465356,171.55,171.42,32.36]
[1746793324873,5.8304,171.54,171.51,5.8313]
[1746793325975,5.8307,171.53,171.5,5.8316]
[1746793326275,32.34,171.56,171.5,5.8316]
[1746793326479,5.8305,171.54,171.51,5.8313]
[1746793326675,32.34,171.56,171.42,32.36]
[1746793326880,43.36465356,171.55,171.4,11.6702]
[1746793327082,43.36465356,171.55,171.48,5.8323]
[1746793327584,5.8313,171.52,171.48,5.8323]
[1746793327784,43.36465356,171.55,171.49,5.832]
[1746793327985,43.36465356,171.55,171.41,32.34]
[1746793328186,43.36465356,171.55,171.39,1.845]
[1746793328386,1.07197811,171.54,171.39,34.185]
[1746793329285,43.36465356,171.55,171.39,34.185]
[1746793329586,1.07204984,171.54,171.39,34.185]
[1746793329788,1.07204984,171.54,171.39,45.8557]
[1746793329978,32.32,171.55,171.39,45.8557]
[1746793330176,11.02465356,171.58,171.39,45.20965356]
[1746793330384,357.0,171.61,171.39,45.20965356]
[1746793330385,32.32,171.57,171.39,45.20965356]
[1746793330688,32.32,171.57,171.4,62.0]
[1746793330987,32.32,171.57,171.42,11.6689]
[1746793331389,5.8302,171.55,171.51,5.8311]
[1746793331688,11.02465356,171.59,171.45,32.32]
[1746793331887,32.32,171.58,171.55,5.8297]
[1746793332386,32.32,171.6,171.57,5.8291]
[1746793332587,32.32,171.6,171.56,1.1657729]
[1746793332888,38.1484,171.6,171.56,1.1657729]
[1746793333087,5.8284,171.6,171.56,1.1657729]
[1746793333289,32.32,171.61,171.56,1.1657729]
[1746793333784,32.32,171.61,171.47,32.3]
[1746793333984,5.8306,171.54,171.49,5.8318]
[1746793334288,32.3,171.56,171.48,1.16631677]
[1746793334587,5.8314,171.51,171.48,1.16631677]
[1746793335487,5.8318,171.5,171.48,1.16631677]
[1746793336179,5.8315,171.51,171.48,1.16631677]
[1746793336383,32.3,171.56,171.48,1.16631677]
[1746793336886,32.3,171.56,171.48,6.99841677]
[1746793337684,5.8316,171.51,171.48,1.16631677]
[1746793337884,32.3,171.56,171.48,1.16631677]
[1746793338091,32.28,171.57,171.48,1.16631677]
[1746793338288,5.8301,171.55,171.48,1.16631677]
[1746793338492,32.28,171.57,171.48,1.16631677]
[1746793338886,5.8306,171.54,171.51,5.8313]
[1746793339289,5.8301,171.55,171.51,5.8313]
[1746793339490,32.28,171.57,171.52,5.8309]
[1746793339687,32.28,171.57,171.48,1.16631677]
[1746793339889,5.8301,171.55,171.51,5.8312]
[1746793340291,357.0,171.6,171.48,1.16631677]
[1746793340490,32.26,171.59,171.53,5.8306]
[1746793341588,5.8297,171.56,171.53,5.8306]
[1746793342093,5.8295,171.57,171.54,5.8303]
[1746793342293,32.26,171.59,171.48,1.16631677]
[1746793342594,5.8299,171.56,171.53,5.8306]
[1746793343391,5.8299,171.56,171.54,5.8303]
[1746793343695,5.8299,171.56,171.48,1.16631677]
[1746793343896,5.8292,171.58,171.54,5.8301]
[1746793344088,32.24,171.61,171.48,1.16631677]
[1746793344484,32.24,171.61,171.54,5.8303]
[1746793344692,32.24,171.61,171.48,1.16631677]
[1746793344893,5.8297,171.56,171.48,33.40631677]
[1746793345088,32.24,171.61,171.48,33.40631677]
[1746793345292,32.24,171.61,171.48,1.16631677]
[1746793345494,5.8299,171.56,171.48,1.16631677]
[1746793345690,5.8299,171.56,171.52,5.8308]
[1746793345894,5.8299,171.56,171.48,1.16631677]
[1746793346295,5.8293,171.58,171.48,1.16631677]
[1746793346595,32.24,171.61,171.48,1.16631677]
[1746793346793,5.8297,171.56,171.52,5.8308]
[1746793347195,32.24,171.6,171.48,1.16631677]
[1746793347595,32.24,171.6,171.54,5.83]
[1746793347996,5.8292,171.58,171.54,5.83]
[1746793348399,32.24,171.6,171.52,5.8307]
[1746793348591,5.8299,171.56,171.52,5.8307]
[1746793348792,5.8299,171.56,171.48,1.16631677]
[1746793349192,5.8295,171.57,171.48,1.16631677]
[1746793349394,32.22,171.58,171.48,1.16631677]
[1746793349791,357.0,171.65,171.48,1.16631677]
[1746793349993,32.22,171.65,171.48,2.16631677]